fUSD/lending_fUSD_20251117
["ID","MTS","AMOUNT","RATE_DAILY","PERIOD"]
[394227286,1763397032557,-29392.0,0.00032,120]
[394227288,1763397032571,-554.62,0.00033015,2]
[394227290,1763397032585,-223.81,0.00033165,2]
[394227293,1763397032599,-689.0,0.000335,5]
[394227295,1763397032611,-155.02,0.00033825,120]
[394227297,1763397032624,-554.62,0.00034253,2]
[394227299,1763397032637,-479.1746172,0.00034366,2]
[394227301,1763397032649,-155.35,0.00034445,2]
[394227302,1763397032662,-278.49,0.000352,30]
[394227303,1763397032673,-554.62,0.00035491,2]
[394227304,1763397032685,-300.0,0.00035815,2]
[394227305,1763397032697,-3514.29092406,0.00036089,2]
[394227306,1763397032709,-200.0,0.00036164,120]
[394227307,1763397032720,-2679.1775,0.00036164,10]
[394227308,1763397032732,-500.0,0.00036173,2]
[394227310,1763397032744,-500.0,0.00036173,5]
[394227312,1763397032757,-500.0,0.00036173,5]
[394227314,1763397032769,-348.139,0.00036173,44]
[394227316,1763397032781,-1005.09466175,0.00036188,2]
[394227318,1763397032793,-130315.90638371,0.00036189,2]
[394227321,1763397032809,-18731.34258511,0.00036189,2]
[394227324,1763397032829,-3712.49726896,0.00036189,2]
[394227327,1763397032851,-426.6787721,0.00036189,2]
[394227329,1763397032866,-830.27707888,0.00036189,2]
[394227332,1763397032879,-1200.0,0.00036189,2]
[394227334,1763397032893,-273.84430536,0.00036189,2]
[394227336,1763397032906,-518.57658913,0.00036189,2]
[394227339,1763397032920,-389.39701675,0.00036189,2]
[394227341,1763397032931,-857.65076792,0.00036189,2]
[394227369,1763397034636,12138.34928871,0.00019,2]
[394227377,1763397038030,-10961.87,0.00029901,2]
[394227378,1763397038041,-2229.98230488,0.00036189,2]
[394227379,1763397038050,-2453.83,0.0003627,2]
[394227380,1763397038060,-271.40971011,0.000364,2]
[394227381,1763397038069,-883.96,0.000365,5]
[394227382,1763397038078,-1039.73,0.000365,5]
[394227383,1763397038089,-1000.0,0.000366,13]
[394227384,1763397038098,-1000.0,0.000366,13]
[394227385,1763397038107,-3514.29092401,0.00036676,2]
[394227386,1763397038116,-200.0,0.00036712,120]
[394227387,1763397038128,-1000.0,0.00036721,2]
[394227388,1763397038137,-1000.0,0.00036721,5]
[394227389,1763397038147,-1000.0,0.00036721,5]
[394227390,1763397038156,-300.0,0.00036722,7]
[394227391,1763397038165,-150.0,0.00036722,7]
[394227392,1763397038173,-554.62,0.00036729,2]
[394227393,1763397038182,-1000.0,0.00037,15]
[394227394,1763397038192,-1000.0,0.00037,15]
[394227395,1763397038202,-1000.0,0.00037,15]
[394227396,1763397038213,-1000.0,0.00037,15]
[394227397,1763397038222,-1000.0,0.00037,15]
[394227398,1763397038232,-1011.0,0.00037,15]
[394227400,1763397038241,-300.0,0.00037185,2]
[394227402,1763397038250,-200.0,0.0003726,120]
[394227404,1763397038259,-3514.29092401,0.00037263,2]
[394227406,1763397038271,-500.0,0.00037268,2]
[394227408,1763397038280,-1500.0,0.00037268,5]
[394227410,1763397038289,-150.0,0.00037307,7]
[394227412,1763397038302,-150.0,0.00037307,7]
[394227414,1763397038311,-150.0,0.00037307,7]
[394227416,1763397038321,-150.0,0.00037307,7]
[394227417,1763397038331,-247.60355897,0.00037307,7]
[394227419,1763397038343,-150.0,0.00037307,7]
[394227421,1763397038352,-150.0,0.00037307,7]
[394227423,1763397038362,-1000.0,0.00037372,2]
[394227425,1763397038373,-500.0,0.00037472,120]
[394227427,1763397038382,-2482.83960491,0.00037483,2]
[394227429,1763397038392,-3162.0953,0.00037494,30]
[394227431,1763397038401,-565.20469509,0.00037503,2]
[394227433,1763397038411,-174.42142396,0.00037505,2]
[394227435,1763397038421,-161.45380965,0.00037573,5]
[394227437,1763397038431,-504.47287269,0.00037573,5]
[394227439,1763397038445,-500.0,0.00037573,5]
[394227442,1763397038455,-500.0,0.00037573,5]
[394227444,1763397038465,-429.6404619,0.00037573,5]
[394227447,1763397038477,-500.0,0.00037573,5]
[394227449,1763397038487,-500.0,0.00037573,5]
[394227450,1763397038498,-313.843262,0.00037573,5]
[394227451,1763397038509,-500.0,0.00037573,5]
[394227452,1763397038522,-504.64460958,0.00037573,5]
[394227453,1763397038532,-501.86673455,0.00037573,5]
[394227454,1763397038543,-500.0,0.00037573,2]
[394227455,1763397038553,-151.0,0.00037578,14]
[394227456,1763397038563,-151.0,0.00037578,14]
[394227458,1763397038574,-500.0,0.00037583,15]
[394227460,1763397038585,-500.0,0.00037583,15]
[394227462,1763397038600,-294.73959081,0.00037583,15]
[394227464,1763397038611,-521.49145163,0.00037583,15]
[394227466,1763397038623,-500.0,0.00037583,2]
[394227468,1763397038633,-500.0,0.00037583,7]
[394227470,1763397038646,-193.31002887,0.00037583,7]
[394227472,1763397038657,-500.0,0.00037583,15]
[394227474,1763397038667,-500.0,0.00037583,2]
[394227476,1763397038679,-573.2755515,0.00037583,15]
[394227479,1763397038689,-500.0,0.00037583,2]
[394227481,1763397038699,-500.0,0.00037583,15]
[394227483,1763397038710,-194.94546364,0.00037583,15]
[394227485,1763397038720,-500.0,0.00037583,2]
[394227487,1763397038730,-500.0,0.00037583,7]
[394227488,1763397038741,-500.0,0.00037583,15]
[394227491,1763397038751,-500.0,0.00037583,7]
[394227493,1763397038761,-52.28724145,0.00037583,15]
[394227495,1763397038776,-447.71275855,0.00037583,15]
[394227497,1763397038788,-500.0,0.00037583,15]
[394227499,1763397038798,-500.0,0.00037583,15]
[394227501,1763397038809,-500.0,0.00037583,15]
[394227503,1763397038819,-502.59409438,0.00037583,2]
[394227505,1763397038829,-500.0,0.00037583,15]
[394227507,1763397038843,-272.19911991,0.00037583,7]
[394227509,1763397038853,-500.0,0.00037583,15]
[394227511,1763397038864,-500.0,0.00037583,7]
[394227513,1763397038875,-500.0,0.00037583,15]
[394227516,1763397038886,-500.0,0.00037583,15]
[394227518,1763397038896,-500.0,0.00037583,15]
[394227520,1763397038906,-500.0,0.00037583,15]
[394227522,1763397038917,-500.0,0.00037583,15]
[394227524,1763397038929,-500.0,0.00037583,15]
[394227526,1763397038939,-500.0,0.00037583,15]
[394227528,1763397038950,-500.0,0.00037583,15]
[394227530,1763397038960,-500.0,0.00037583,15]
[394227532,1763397038970,-500.0,0.00037583,15]
[394227534,1763397038980,-500.0,0.00037583,15]
[394227536,1763397038989,-500.0,0.00037583,15]
[394227538,1763397038999,-500.0,0.00037583,15]
[394227540,1763397039008,-500.0,0.00037583,15]
[394227542,1763397039018,-495.46407236,0.00037583,15]
[394227544,1763397039031,-500.0,0.00037583,15]
[394227546,1763397039041,-500.0,0.00037583,15]
[394227548,1763397039050,-500.0,0.00037583,15]
[394227550,1763397039063,-500.0,0.00037583,15]
[394227552,1763397039073,-500.0,0.00037583,15]
[394227554,1763397039083,-500.0,0.00037583,15]
[394227556,1763397039095,-500.0,0.00037583,15]
[394227558,1763397039105,-500.0,0.00037583,15]
[394227560,1763397039115,-500.0,0.00037583,15]
[394227562,1763397039125,-500.0,0.00037583,15]
[394227564,1763397039135,-500.0,0.00037583,15]
[394227566,1763397039145,-500.0,0.00037583,15]
[394227568,1763397039158,-500.0,0.00037583,15]
[394227570,1763397039167,-500.0,0.00037583,15]
[394227572,1763397039178,-500.0,0.00037583,15]
[394227574,1763397039190,-500.0,0.00037583,15]
[394227576,1763397039200,-500.0,0.00037583,15]
[394227578,1763397039209,-500.0,0.00037583,15]
[394227580,1763397039219,-500.0,0.00037583,15]
[394227582,1763397039230,-500.0,0.00037583,15]
[394227584,1763397039241,-500.0,0.00037583,15]
[394227587,1763397039251,-474.76650057,0.00037583,15]
[394227589,1763397039261,-500.0,0.00037583,15]
[394227591,1763397039271,-500.0,0.00037583,15]
[394227593,1763397039281,-500.0,0.00037583,15]
[394227594,1763397039292,-500.0,0.00037583,15]
[394227597,1763397039302,-500.0,0.00037583,15]
[394227598,1763397039311,-500.0,0.00037583,15]
[394227601,1763397039321,-500.0,0.00037583,15]
[394227603,1763397039330,-500.0,0.00037583,15]
[394227605,1763397039341,-500.0,0.00037583,15]
[394227607,1763397039351,-500.0,0.00037583,15]
[394227608,1763397039361,-500.0,0.00037583,15]
[394227611,1763397039372,-500.0,0.00037583,15]
[394227613,1763397039382,-500.0,0.00037583,15]
[394227615,1763397039392,-500.0,0.00037583,15]
[394227617,1763397039402,-500.0,0.00037583,15]
[394227618,1763397039412,-500.0,0.00037583,15]
[394227621,1763397039422,-500.0,0.00037583,15]
[394227623,1763397039436,-500.0,0.00037583,15]
[394227625,1763397039448,-500.0,0.00037583,15]
[394227627,1763397039459,-500.0,0.00037583,15]
[394227629,1763397039468,-500.0,0.00037583,15]
[394227631,1763397039479,-500.0,0.00037583,15]
[394227633,1763397039488,-500.0,0.00037583,15]
[394227635,1763397039497,-500.0,0.00037583,15]
[394227637,1763397039507,-500.0,0.00037583,15]
[394227640,1763397039519,-500.0,0.00037583,15]
[394227641,1763397039529,-500.0,0.00037583,15]
[394227644,1763397039540,-500.0,0.00037583,15]
[394227645,1763397039549,-500.0,0.00037583,15]
[394227647,1763397039560,-550.0,0.00037583,15]
[394227650,1763397039570,-500.0,0.00037583,15]
[394227652,1763397039580,-500.0,0.00037583,15]
[394227654,1763397039592,-500.0,0.00037583,15]
[394227655,1763397039601,-500.0,0.00037583,15]
[394227658,1763397039611,-500.0,0.00037583,15]
[394227660,1763397039621,-500.0,0.00037583,15]
[394227662,1763397039631,-24726.4556917,0.00037583,4]
[394227664,1763397039642,-148358.73415,0.00037584,4]
[394227666,1763397039652,-21885.3328021,0.00037584,4]
[394227668,1763397039663,-151.0,0.00037591,14]
[394227669,1763397039673,-241.41543848,0.00037591,14]
[394227671,1763397039683,-760.59,0.00037593,14]
[394227673,1763397039693,-500.0,0.00037593,2]
[394227676,1763397039703,-500.0,0.00037593,2]
[394227677,1763397039713,-213444.59407834,0.00037594,4]
[394227680,1763397039726,-157452.24129666,0.00037594,4]
[394227682,1763397039736,-78545.72571524,0.00037594,4]
[394227684,1763397039747,-78299.15936676,0.00037594,4]
[394227686,1763397039757,-271.01100444,0.00037594,2]
[394227688,1763397039767,-500.0,0.000376,5]
[394227690,1763397039777,-500.0,0.000376,5]
[394227692,1763397039786,-500.0,0.000376,3]
[394227694,1763397039795,-500.0,0.000376,5]
[394227696,1763397039804,-446.50210909,0.00037603,15]
[394227698,1763397039814,-372.61009909,0.00037603,15]
[394227700,1763397039824,-500.0,0.00037603,15]
[394227702,1763397039835,-300.0,0.00037603,10]
[394227704,1763397039848,-10039.5734,0.00037604,2]
[394227706,1763397039858,-1000.0,0.00037604,2]
[394227708,1763397039868,-118525.28791316,0.00037604,2]
[394227711,1763397039882,-62471.80951509,0.00037604,2]
[394227713,1763397039894,-23212.59454484,0.00037604,2]
[394227716,1763397039908,-1616.29891002,0.00037604,2]
[394227719,1763397039920,-1395.93830089,0.00037604,2]
[394227723,1763397039931,-467.745,0.00037604,2]
[394227725,1763397039944,-552310.325816,0.00037604,2]
[394227727,1763397039954,-267.86529,0.00037604,31]
[394227729,1763397039964,-189.883674,0.00037604,31]
[394227731,1763397039973,-213.117898,0.00037604,31]
[394227733,1763397039982,-213.117898,0.00037604,31]
[394227735,1763397039992,-213.117898,0.00037604,31]
[394227737,1763397040002,-213.117898,0.00037604,31]
[394227739,1763397040012,-151.0,0.00037604,31]
[394227741,1763397040022,-151.0,0.00037604,31]
[394227743,1763397040032,-253.094726,0.00037604,31]
[394227745,1763397040042,-253.094726,0.00037604,31]
[394227747,1763397040051,-253.094726,0.00037604,31]
[394227749,1763397040060,-253.094726,0.00037604,31]
[394227751,1763397040069,-151.0,0.00037604,31]
[394227753,1763397040082,-151.0,0.00037604,31]
[394227755,1763397040095,-871.93,0.00037615,5]
[394227757,1763397040104,-865.92,0.00037615,5]
[394227759,1763397040113,-858.27,0.00037615,5]
[394227760,1763397040124,-500.0,0.00037673,5]
[394227761,1763397040135,-503.88116874,0.00037673,5]
[394227762,1763397040145,-503.79066701,0.00037673,5]
[394227763,1763397040154,-501.49845435,0.00037673,5]
[394227764,1763397040164,-500.0,0.00037704,30]
[394227765,1763397040173,-500.0,0.00037704,30]
[394227767,1763397040182,-500.0,0.00037704,30]
[394227769,1763397040191,-500.0,0.00037704,120]
[394227771,1763397040201,-500.0,0.00037704,120]
[394227773,1763397040210,-500.0,0.00037704,120]
[394227775,1763397040220,-500.0,0.00037704,120]
[394227777,1763397040229,-500.0,0.00037704,120]
[394227779,1763397040238,-500.0,0.00037704,120]
[394227781,1763397040249,-280.61488507,0.00037704,15]
[394227783,1763397040259,-500.0,0.00037704,2]
[394227785,1763397040269,-161.44008381,0.00037704,2]
[394227787,1763397040278,-500.0,0.00037714,30]
[394227789,1763397040288,-500.0,0.00037714,30]
[394227791,1763397040298,-500.0,0.00037714,30]
[394227793,1763397040307,-500.0,0.00037714,120]
[394227795,1763397040317,-556.22510754,0.00037714,120]
[394227797,1763397040328,-500.0,0.00037714,120]
[394227799,1763397040337,-391.38178285,0.00037714,120]
[394227801,1763397040348,-200.0,0.00037808,120]
[394227803,1763397040357,-3514.29092401,0.00037849,2]
[394227805,1763397040367,-760.59,0.00037867,14]
[394227807,1763397040377,-500.0,0.00037867,2]
[394227809,1763397040387,-163.42977012,0.00037894,30]
[394227811,1763397040396,-2482.83960486,0.00037915,2]
[394227813,1763397040405,-205.2,0.0003796,2]
[394227815,1763397040415,-554.62,0.00037967,2]
[394227817,1763397040425,-150.0,0.00037998,7]
[394227819,1763397040436,-300.0,0.00037999,10]
[394227821,1763397040449,-104065.37971339,0.00038,30]
[394227823,1763397040458,-97374.15634242,0.00038,2]
[394227825,1763397040469,-1000.0,0.00038,20]
[394227827,1763397040479,-953.8256405,0.00038121,5]
[394227829,1763397040489,-332.71817179,0.00038121,5]
[394227831,1763397040499,-1000.0,0.00038121,5]
[394227833,1763397040510,-1000.0,0.00038121,2]
[394227835,1763397040520,-500.0,0.00038136,2]
[394227837,1763397040530,-760.59,0.00038141,14]
[394227839,1763397040540,-500.0,0.00038141,2]
[394227841,1763397040549,-1000.0,0.00038148,5]
[394227843,1763397040559,-500.0,0.00038148,5]
[394227845,1763397040568,-420.27752062,0.00038148,3]
[394227848,1763397040579,-1000.0,0.00038148,5]
[394227849,1763397040591,-2482.83960486,0.00038347,2]
[394227851,1763397040600,-200.0,0.00038356,120]
[394227854,1763397040610,-500.0,0.00038356,30]
[394227856,1763397040620,-760.59,0.00038415,30]
[394227858,1763397040629,-500.0,0.00038415,2]
[394227860,1763397040638,-3514.29092401,0.00038436,2]
[394227862,1763397040649,-500.0,0.0003863,30]
[394227864,1763397040659,-243.37395338,0.00038668,5]
[394227866,1763397040668,-326.66742499,0.00038668,2]
[394227868,1763397040677,-150.0,0.00038689,7]
[394227870,1763397040687,-150.0,0.00038689,7]
[394227872,1763397040696,-760.59,0.00038689,30]
[394227874,1763397040705,-500.0,0.00038689,2]
[394227876,1763397040716,-1500.0,0.00038696,5]
[394227878,1763397040727,-500.0,0.00038696,5]
[394227880,1763397040737,-2621.52,0.00038716,2]
[394227882,1763397040748,-174.42142396,0.00038791,2]
[394227884,1763397040759,-1471.52287929,0.000388,30]
[394227886,1763397040768,-200.0,0.00038846,2]
[394227888,1763397040778,-334.2706,0.00038888,30]
[394227890,1763397040787,-150.0,0.00038892,2]
[394227892,1763397040796,-200.0,0.00038904,120]
[394227894,1763397040805,-500.0,0.00038904,30]
[394227896,1763397040815,-760.59,0.00038963,30]
[394227899,1763397040824,-539.25,0.00038963,2]
[394227901,1763397040833,-300.0,0.00038988,10]
[394227903,1763397040845,-300.0,0.00038998,10]
[394227906,1763397040881,-50000.0,0.00038999,39]
[394227908,1763397040892,-1000.0,0.00039,20]
[394227910,1763397040902,-3514.29092401,0.00039023,2]
[394227912,1763397040912,-525.92146982,0.00039166,30]
[394227915,1763397040922,-501.91,0.00039178,30]
[394227917,1763397040932,-760.59,0.00039237,30]
[394227918,1763397040941,-188.12379968,0.00039289,120]
[394227921,1763397040951,-150.0,0.00039379,7]
[394227923,1763397040961,-200.0,0.00039452,120]
[394227925,1763397040970,-200.0,0.00039452,120]
[394227927,1763397040980,-500.0,0.00039452,30]
[394227929,1763397040989,-155.02,0.00039462,120]
[394227931,1763397041000,-760.66,0.00039511,30]
[394227933,1763397041011,-3514.29092401,0.0003961,2]
[394227935,1763397041022,-223.81,0.00039654,2]
[394227937,1763397041031,-150.0,0.0003969,120]
[394227940,1763397041041,-501.4,0.00039726,30]
[394227942,1763397041049,-15585.17112709,0.00039748,2]
[394227944,1763397041059,-1883.0,0.00039829,2]
[394227946,1763397041068,-1883.0,0.00039848,120]
[394227948,1763397041079,-1883.0,0.00039887,7]
[394227950,1763397041090,-1883.0,0.00039964,2]
[394227952,1763397041100,-256.42545363,0.00039999,10]
[394227954,1763397041109,-50000.0,0.0004,40]
[394227956,1763397041119,-3154.7960978,0.0004,10]
[394227958,1763397041129,-200.0,0.0004,120]
[394227960,1763397041139,-200.0,0.0004,120]
[394227962,1763397041150,-151.0,0.0004,120]
[394227964,1763397041160,-151.0,0.0004,120]
[394227966,1763397041171,-155.795813,0.0004,120]
[394227968,1763397041180,-151.0,0.0004,120]
[394227970,1763397041190,-155.795813,0.0004,120]
[394227972,1763397041199,-151.0,0.0004,120]
[394227974,1763397041208,-151.0,0.0004,120]
[394227976,1763397041218,-151.0,0.0004,120]
[394227979,1763397041227,-155.795813,0.0004,120]
[394227981,1763397041236,-151.0,0.0004,120]
[394227983,1763397041247,-155.795813,0.0004,120]
[394227985,1763397041256,-151.0,0.0004,120]
[394227987,1763397041266,-151.0,0.0004,120]
[394227989,1763397041275,-151.0,0.0004,120]
[394227991,1763397041284,-151.0,0.0004,120]
[394227993,1763397041293,-166.935786,0.0004,120]
[394227995,1763397041302,-151.0,0.0004,120]
[394227997,1763397041311,-151.0,0.0004,120]
[394227999,1763397041320,-151.0,0.0004,120]
[394228001,1763397041330,-151.0,0.0004,120]
[394228003,1763397041343,-151.0,0.0004,120]
[394228005,1763397041352,-249.753909,0.0004,120]
[394228007,1763397041364,-151.0,0.0004,120]
[394228009,1763397041375,-151.0,0.0004,120]
[394228011,1763397041386,-151.0,0.0004,60]
[394228026,1763397041395,-151.0,0.0004,120]
[394228028,1763397041600,-418.104286,0.0004,120]
[394228030,1763397041610,-151.0,0.0004,120]
[394228032,1763397041620,-151.0,0.0004,120]
[394228034,1763397041629,-151.0,0.0004,120]
[394228036,1763397041639,-418.104286,0.0004,120]
[394228038,1763397041649,-418.104286,0.0004,120]
[394228041,1763397041660,-418.104286,0.0004,120]
[394228043,1763397041669,-151.0,0.0004,120]
[394228044,1763397041679,-151.0,0.0004,120]
[394228047,1763397041689,-151.0,0.0004,120]
[394228049,1763397041699,-153.782234,0.0004,120]
[394228051,1763397041709,-151.0,0.0004,120]
[394228053,1763397041718,-151.0,0.0004,120]
[394228055,1763397041727,-151.0,0.0004,28]
[394228057,1763397041738,-151.0,0.0004,120]
[394228059,1763397041748,-152.815279,0.0004,120]
[394228061,1763397041758,-237.660314,0.0004,120]
[394228063,1763397041767,-237.660314,0.0004,120]
[394228065,1763397041777,-686.634188,0.0004,120]
[394228067,1763397041786,-237.660314,0.0004,120]
[394228069,1763397041795,-686.634188,0.0004,120]
[394228071,1763397041805,-237.660314,0.0004,120]
[394228073,1763397041815,-303.18157,0.0004,30]
[394228075,1763397041824,-151.0,0.0004,120]
[394228077,1763397041833,-686.634188,0.0004,120]
[394228079,1763397041846,-303.18157,0.0004,30]
[394228081,1763397041856,-163.366616,0.0004,120]
[394228083,1763397041865,-303.18157,0.0004,30]
[394228084,1763397041875,-686.634188,0.0004,120]
[394228086,1763397041885,-163.366616,0.0004,120]
[394228088,1763397041894,-303.18157,0.0004,30]
[394228090,1763397041904,-163.366616,0.0004,120]
[394228092,1763397041914,-163.366616,0.0004,120]
[394228094,1763397041923,-151.0,0.0004,120]
[394228096,1763397041933,-500.0,0.0004,5]
[394228099,1763397041944,-151.0,0.0004,120]
[394228101,1763397041955,-500.0,0.0004,5]
[394228103,1763397041965,-500.0,0.0004,5]
[394228105,1763397041975,-200.0,0.0004,5]
[394228107,1763397041984,-500.0,0.0004,5]
[394228109,1763397041993,-500.0,0.0004,5]
[394228111,1763397042003,-500.0,0.0004,5]
[394228113,1763397042015,-500.0,0.0004,5]
[394228115,1763397042024,-501.34785536,0.0004,5]
[394228117,1763397042033,-311.05286911,0.00040063,7]
[394228119,1763397042043,-508.25262477,0.00040063,7]
[394228121,1763397042052,-150.0,0.0004007,7]
[394228123,1763397042061,-150.0,0.0004007,7]
[394228125,1763397042071,-174.42142396,0.00040078,2]
[394228127,1763397042081,-150.0,0.0004018,2]
[394228129,1763397042094,-1883.0,0.00040191,2]
[394228131,1763397042103,-3514.29092401,0.00040196,15]
[394228133,1763397042115,-150.0,0.00040275,120]
[394228135,1763397042124,-1886.0,0.00040324,2]
[394228137,1763397042134,-500.0,0.00040548,5]
[394228139,1763397042143,-500.0,0.00040548,5]
[394228141,1763397042152,-500.0,0.00040548,5]
[394228143,1763397042162,-200.0,0.00040548,120]
[394228145,1763397042171,-200.0,0.00040548,120]
[394228147,1763397042180,-500.0,0.00040685,5]
[394228149,1763397042189,-6467.0,0.00040685,5]
[394228151,1763397042199,-310.028352,0.00040718,120]
[394228153,1763397042209,-150.0,0.00040761,7]
[394228155,1763397042218,-3514.29092401,0.00040783,15]
[394228156,1763397042227,-1883.0,0.00040802,7]
[394228158,1763397042236,-1883.0,0.0004085,7]
[394228159,1763397042246,-1883.0,0.00040966,120]
[394228161,1763397042256,-400.0,0.0004099,120]
[394228163,1763397042266,-221.30222769,0.0004099,5]
[394228165,1763397042275,-50000.0,0.00041,41]
[394228166,1763397042284,-160.0,0.00041,90]
[394228168,1763397042293,-312.24045408,0.0004103,104]
[394228169,1763397042303,-212.5,0.00041041,7]
[394228171,1763397042312,-1883.0,0.00041048,2]
[394228173,1763397042321,-1071.07418,0.0004105,7]
[394228174,1763397042330,-154.38,0.00041096,2]
[394228176,1763397042341,-200.0,0.00041096,120]
[394228178,1763397042351,-200.0,0.00041096,120]
[394228180,1763397042360,-500.0,0.00041096,2]
[394228181,1763397042369,-500.0,0.00041096,2]
[394228183,1763397042380,-500.0,0.00041096,2]
[394228185,1763397042390,-500.0,0.00041096,2]
[394228186,1763397042400,-500.0,0.00041096,2]
[394228188,1763397042409,-500.0,0.00041096,2]
[394228190,1763397042419,-500.0,0.00041096,2]
[394228192,1763397042429,-500.0,0.00041096,2]
[394228193,1763397042440,-500.0,0.00041096,2]
[394228195,1763397042451,-500.0,0.00041096,2]
[394228197,1763397042462,-500.0,0.00041096,2]
[394228198,1763397042471,-500.0,0.00041096,2]
[394228200,1763397042483,-500.0,0.00041096,2]
[394228202,1763397042494,-500.0,0.00041096,2]
[394228203,1763397042505,-500.0,0.00041096,2]
[394228205,1763397042516,-587.07819284,0.00041096,2]
[394228207,1763397042527,-210.3356368,0.00041096,2]
[394228209,1763397042538,-1725.16456899,0.00041155,2]
[394228211,1763397042548,-122432.1398348,0.00041272,2]
[394228212,1763397042559,-213.117898,0.00041272,120]
[394228214,1763397042568,-213.117898,0.00041272,120]
[394228216,1763397042578,-213.117898,0.00041272,120]
[394228217,1763397042589,-213.117898,0.00041272,120]
[394228219,1763397042601,-151.0,0.00041272,120]
[394228221,1763397042610,-151.0,0.00041272,120]
[394228223,1763397042620,-253.094726,0.00041272,120]
[394228224,1763397042630,-253.094726,0.00041272,120]
[394228226,1763397042641,-253.094726,0.00041272,120]
[394228228,1763397042653,-253.094726,0.00041272,120]
[394228230,1763397042669,-151.0,0.00041272,120]
[394228232,1763397042678,-271.074922,0.00041272,120]
[394228234,1763397042689,-1856.0,0.000413,7]
[394228235,1763397042699,-222.2113773,0.00041302,2]
[394228237,1763397042709,-1883.0,0.0004135,7]
[394228239,1763397042720,-28517.6718405,0.00041356,2]
[394228241,1763397042731,-174.42142396,0.00041364,3]
[394228243,1763397042740,-3514.29092401,0.0004137,15]
[394228244,1763397042750,-151.0,0.0004137,120]
[394228246,1763397042760,-151.0,0.0004137,120]
[394228248,1763397042770,-40079.36688493,0.0004137,2]
[394228250,1763397042780,-500.0,0.00041373,10]
[394228251,1763397042789,-500.0,0.00041373,10]
[394228254,1763397042799,-151.0,0.00041374,120]
[394228258,1763397042809,-151.0,0.00041374,120]
[394228261,1763397042818,-151.0,0.00041374,120]
[394228264,1763397042827,-151.0,0.00041374,120]
[394228266,1763397042839,-151.0,0.00041374,120]
[394228269,1763397042849,-270.883392,0.00041374,120]
[394228272,1763397042858,-151.0,0.00041374,120]
[394228275,1763397042868,-151.0,0.00041374,120]
[394228277,1763397042878,-291.61717,0.00041374,120]
[394228280,1763397042891,-151.0,0.00041374,120]
[394228284,1763397042901,-151.0,0.00041374,120]
[394228287,1763397042912,-151.0,0.00041374,120]
[394228291,1763397042922,-500.0,0.00041383,7]
[394228294,1763397042932,-422.27336462,0.00041383,30]
[394228296,1763397042941,-500.0,0.00041383,120]
[394228299,1763397042950,-266.64506398,0.00041383,120]
[394228302,1763397042960,-500.0,0.00041383,2]
[394228305,1763397042969,-17452.307313,0.00041384,2]
[394228307,1763397042978,-106505.3044639,0.00041384,2]
[394228310,1763397042988,-151.0,0.00041384,120]
[394228313,1763397042997,-151.0,0.00041384,120]
[394228316,1763397043007,-151.0,0.00041384,120]